fUSD/lending_fUSD_20241215
["ID","MTS","AMOUNT","RATE_DAILY","PERIOD"]
[345401178,1734240640997,-500.0,0.00013789,2]
[345401179,1734240641006,-548.11,0.00013789,2]
[345401180,1734240641015,-500.0,0.00013789,2]
[345401181,1734240641025,-500.0,0.00013789,2]
[345401182,1734240641034,-500.0,0.00013789,2]
[345401183,1734240641043,-500.0,0.00013789,2]
[345401184,1734240641054,-1097.65,0.00013789,2]
[345401185,1734240641063,-426.17876854,0.00013789,2]
[345401186,1734240641073,-500.0,0.00013789,2]
[345401187,1734240641082,-500.0,0.00013789,2]
[345401188,1734240641092,-500.0,0.00013789,2]
[345401189,1734240641102,-500.0,0.00013789,2]
[345401190,1734240641111,-500.0,0.00013789,2]
[345401191,1734240641120,-1580.32,0.00013789,2]
[345401192,1734240641130,-500.0,0.00013789,2]
[345401193,1734240641139,-500.0,0.00013789,2]
[345401194,1734240641149,-748.58,0.00013789,2]
[345401195,1734240641159,-500.0,0.00013789,2]
[345401196,1734240641168,-366.70978571,0.00013789,2]
[345401197,1734240641178,-379.68399918,0.00013789,2]
[345401198,1734240641187,-500.0,0.00013789,2]
[345401199,1734240641197,-500.0,0.00013789,2]
[345401200,1734240641208,-500.0,0.00013789,2]
[345401201,1734240641218,-500.0,0.00013789,2]
[345401202,1734240641227,-907.26,0.00013789,2]
[345401203,1734240641237,-500.0,0.00013789,2]
[345401204,1734240641246,-546.1313863,0.00013789,2]
[345401205,1734240641255,-500.0,0.00013789,2]
[345401206,1734240641264,-545.3915956,0.00013789,2]
[345401207,1734240641274,-500.0,0.00013789,2]
[345401208,1734240641283,-501.19753572,0.00013789,2]
[345401209,1734240641292,-500.0,0.00013789,2]
[345401210,1734240641302,-500.0,0.00013789,2]
[345401211,1734240641312,-500.0,0.00013789,2]
[345401212,1734240641321,-500.0,0.00013789,2]
[345401213,1734240641331,-500.0,0.00013789,2]
[345401214,1734240641340,-500.0,0.00013789,2]
[345401215,1734240641349,-500.0,0.00013789,2]
[345401216,1734240641358,-500.0,0.00013789,2]
[345401217,1734240641367,-500.0,0.00013789,2]
[345401218,1734240641377,-512.80151904,0.00013789,2]
[345401219,1734240641386,-507.18305464,0.00013789,2]
[345401220,1734240641396,-500.0,0.00013789,2]
[345401221,1734240641405,-500.0,0.00013789,2]
[345401222,1734240641415,-500.0,0.00013789,2]
[345401223,1734240641425,-1599.93,0.00013789,2]
[345401224,1734240641434,-500.0,0.00013789,2]
[345401225,1734240641444,-500.0,0.00013789,2]
[345401226,1734240641453,-225857.67479936,0.0001379,2]
[345401227,1734240641462,-150.121514,0.00013798,3]
[345401228,1734240641471,-150.121514,0.00013798,2]
[345401229,1734240641708,-1700.0,0.000138,5]
[345401230,1734240641719,-3000.0,0.0001384,2]
[345401231,1734240641729,-658.67,0.00013864,2]
[345401232,1734240641739,-1000.0,0.00013871,2]
[345401233,1734240641748,-500.0,0.00013878,2]
[345401234,1734240641757,-518.25508459,0.00013878,2]
[345401235,1734240641767,-500.0,0.00013879,2]
[345401236,1734240641778,-500.0,0.00013879,2]
[345401237,1734240641793,-382.12436688,0.00013879,2]
[345401238,1734240641802,-2533.56,0.00013879,2]
[345401239,1734240641812,-2533.56,0.00013879,2]
[345401240,1734240641821,-2533.56,0.00013879,2]
[345401241,1734240641831,-500.0,0.00013879,2]
[345401242,1734240641841,-500.0,0.00013879,2]
[345401243,1734240641851,-500.0,0.00013879,2]
[345401244,1734240641861,-749.26,0.00013879,2]
[345401245,1734240641871,-749.26,0.00013879,2]
[345401246,1734240641880,-749.26,0.00013879,2]
[345401247,1734240641890,-752.82,0.00013879,2]
[345401248,1734240641900,-752.82,0.00013879,2]
[345401249,1734240641910,-752.82,0.00013879,2]
[345401250,1734240641919,-532.78097568,0.00013879,2]
[345401251,1734240641929,-962.59,0.00013879,2]
[345401252,1734240641942,-962.59,0.00013879,2]
[345401253,1734240641951,-962.59,0.00013879,2]
[345401254,1734240641961,-500.0,0.00013879,2]
[345401255,1734240641971,-251.08084811,0.00013879,2]
[345401256,1734240641981,-500.0,0.00013879,2]
[345401257,1734240641992,-500.0,0.00013879,2]
[345401258,1734240642003,-500.0,0.00013879,2]
[345401259,1734240642012,-500.0,0.00013879,2]
[345401260,1734240642021,-500.0,0.00013879,2]
[345401261,1734240642032,-500.0,0.00013879,2]
[345401262,1734240642042,-1097.65,0.00013879,2]
[345401263,1734240642051,-1097.65,0.00013879,2]
[345401264,1734240642061,-1097.65,0.00013879,2]
[345401265,1734240642071,-500.0,0.00013879,2]
[345401266,1734240642081,-500.0,0.00013879,2]
[345401267,1734240642090,-500.0,0.00013879,2]
[345401268,1734240642099,-500.0,0.00013879,2]
[345401269,1734240642108,-500.0,0.00013879,2]
[345401270,1734240642118,-500.0,0.00013879,2]
[345401271,1734240642127,-205.94189243,0.00013879,2]
[345401272,1734240642137,-1580.32,0.00013879,2]
[345401273,1734240642147,-1580.32,0.00013879,2]
[345401274,1734240642156,-1580.32,0.00013879,2]
[345401275,1734240642165,-748.58,0.00013879,2]
[345401276,1734240642175,-748.58,0.00013879,2]
[345401277,1734240642184,-748.58,0.00013879,2]
[345401278,1734240642194,-500.0,0.00013879,2]
[345401279,1734240642203,-500.0,0.00013879,2]
[345401280,1734240642212,-500.0,0.00013879,2]
[345401281,1734240642222,-500.0,0.00013879,2]
[345401282,1734240642231,-500.0,0.00013879,2]
[345401283,1734240642241,-500.0,0.00013879,2]
[345401284,1734240642250,-500.0,0.00013879,2]
[345401285,1734240642259,-500.0,0.00013879,2]
[345401286,1734240642269,-500.0,0.00013879,2]
[345401287,1734240642280,-500.0,0.00013879,2]
[345401288,1734240642289,-907.26,0.00013879,2]
[345401289,1734240642300,-907.26,0.00013879,2]
[345401290,1734240642309,-907.26,0.00013879,2]
[345401291,1734240642319,-500.0,0.00013879,2]
[345401292,1734240642328,-500.0,0.00013879,2]
[345401293,1734240642338,-500.0,0.00013879,2]
[345401294,1734240642347,-500.0,0.00013879,2]
[345401295,1734240642356,-500.0,0.00013879,2]
[345401296,1734240642365,-500.0,0.00013879,2]
[345401297,1734240642374,-500.0,0.00013879,2]
[345401298,1734240642384,-500.0,0.00013879,2]
[345401299,1734240642393,-500.0,0.00013879,2]
[345401300,1734240642403,-500.0,0.00013879,2]
[345401301,1734240642412,-500.0,0.00013879,2]
[345401302,1734240642422,-500.0,0.00013879,2]
[345401303,1734240642431,-420.45993281,0.00013879,2]
[345401304,1734240642441,-500.0,0.00013879,2]
[345401305,1734240642451,-500.0,0.00013879,2]
[345401306,1734240642460,-500.0,0.00013879,2]
[345401307,1734240642469,-500.0,0.00013879,2]
[345401308,1734240642479,-500.0,0.00013879,2]
[345401309,1734240642489,-281.44342248,0.00013879,2]
[345401310,1734240642498,-500.0,0.00013879,2]
[345401311,1734240642512,-1599.93,0.00013879,2]
[345401312,1734240642521,-1599.93,0.00013879,2]
[345401313,1734240642533,-500.0,0.00013879,2]
[345401314,1734240642542,-1599.93,0.00013879,2]
[345401315,1734240642554,-500.0,0.00013879,2]
[345401316,1734240642564,-500.0,0.00013879,2]
[345401317,1734240642573,-500.0,0.00013879,2]
[345401318,1734240642586,-500.0,0.00013879,2]
[345401319,1734240642596,-533674.90958132,0.0001388,2]
[345401320,1734240642605,-2000.0,0.00013888,2]
[345401321,1734240642615,-500.0,0.00013888,2]
[345401322,1734240642624,-200.0,0.00013888,2]
[345401323,1734240642633,-150.121514,0.00013898,2]
[345401324,1734240642642,-150.121514,0.00013898,3]
[345401325,1734240642651,-514.54233924,0.00013899,2]
[345401326,1734240642661,-2200.0,0.000139,5]
[345401327,1734240642672,-176.50905898,0.000139,2]
[345401328,1734240642683,-2376.28304486,0.000139,2]
[345401329,1734240642692,-233.9631655,0.000139,2]
[345401330,1734240642701,-150.121514,0.00013948,2]
[345401331,1734240642712,-150.121514,0.00013948,3]
[345401332,1734240642721,-1772.857,0.00013948,2]
[345401333,1734240642731,-153.502,0.00013948,2]
[345401334,1734240642740,-200.0,0.00013962,2]
[345401335,1734240642750,-200.0,0.00013968,2]
[345401336,1734240642760,-500.0,0.00013973,2]
[345401337,1734240642770,-500.0,0.00013973,2]
[345401338,1734240642783,-200.0,0.00013979,2]
[345401339,1734240642793,-200.0,0.00013981,2]
[345401340,1734240642802,-108217.16227877,0.00013983,2]
[345401341,1734240642811,-200.0,0.00013983,2]
[345401342,1734240642820,-1802.17039231,0.00013983,2]
[345401343,1734240642829,-200.0,0.00013983,2]
[345401344,1734240642839,-151539.51727521,0.00013984,2]
[345401345,1734240642849,-20629.10608165,0.00013984,2]
[345401346,1734240642859,-139742.82824807,0.00013984,2]
[345401347,1734240642868,-200.0,0.00013987,2]
[345401348,1734240642877,-151539.51727521,0.00013988,2]
[345401349,1734240642887,-2822.93903706,0.0001399,2]
[345401350,1734240642896,-151539.51727521,0.0001399,2]
[345401351,1734240642906,-749.11943384,0.00013991,2]
[345401352,1734240642915,-151539.51727521,0.00013991,2]
[345401353,1734240642926,-2822.93903706,0.00013992,2]
[345401354,1734240642935,-549.273,0.00013992,2]
[345401355,1734240642944,-150.0,0.00013992,2]
[345401356,1734240642954,-3879.0,0.00013992,2]
[345401357,1734240642963,-634.0,0.00013992,2]
[345401358,1734240642973,-756.636,0.00013992,2]
[345401359,1734240642982,-200.0,0.00013994,2]
[345401360,1734240642992,-200.0,0.00013995,2]
[345401361,1734240643001,-2386.6794616,0.00013995,2]
[345401362,1734240643011,-996.5863265,0.00013995,2]
[345401363,1734240643021,-660.89697653,0.00013995,2]
[345401364,1734240643031,-2465.2002865,0.00013995,2]
[345401365,1734240643041,-749.11943384,0.00013995,2]
[345401366,1734240643051,-151539.51727521,0.00013996,2]
[345401367,1734240643060,-2822.93903706,0.00013996,2]
[345401368,1734240643070,-200.0,0.00013997,2]
[345401369,1734240643079,-506.37,0.00013997,2]
[345401370,1734240643088,-500.0,0.00013997,2]
[345401371,1734240643097,-1194.45,0.00013997,2]
[345401372,1734240643107,-500.0,0.00013997,2]
[345401373,1734240643116,-500.0,0.00013997,2]
[345401374,1734240643126,-1318.78,0.00013997,2]
[345401375,1734240643136,-500.0,0.00013997,2]
[345401376,1734240643146,-500.0,0.00013997,2]
[345401377,1734240643155,-2861.36,0.00013997,2]
[345401378,1734240643164,-500.0,0.00013997,2]
[345401379,1734240643174,-5055.67,0.00013997,2]
[345401380,1734240643183,-500.0,0.00013997,2]
[345401381,1734240643192,-518.81,0.00013997,2]
[345401382,1734240643202,-824.02,0.00013997,2]
[345401383,1734240643213,-500.0,0.00013997,2]
[345401384,1734240643224,-500.0,0.00013997,2]
[345401385,1734240643233,-500.0,0.00013997,2]
[345401386,1734240643242,-500.0,0.00013997,2]
[345401387,1734240643252,-500.0,0.00013997,2]
[345401388,1734240643262,-500.0,0.00013997,2]
[345401389,1734240643274,-855.14,0.00013997,2]
[345401390,1734240643284,-548.11,0.00013997,2]
[345401391,1734240643293,-500.0,0.00013997,2]
[345401392,1734240643303,-500.0,0.00013997,2]
[345401393,1734240643313,-500.0,0.00013997,2]
[345401394,1734240643323,-500.0,0.00013997,2]
[345401395,1734240643333,-500.0,0.00013997,2]
[345401396,1734240643342,-500.0,0.00013997,2]
[345401397,1734240643351,-500.0,0.00013997,2]
[345401398,1734240643360,-500.0,0.00013997,2]
[345401399,1734240643370,-36489.95674611,0.00013997,2]
[345401400,1734240643379,-295.1138722,0.00013998,2]
[345401401,1734240643388,-500.0,0.00013998,2]
[345401402,1734240643397,-500.0,0.00013998,2]
[345401403,1734240643406,-513.15438867,0.00013998,2]
[345401404,1734240643416,-169.00692423,0.00013998,2]
[345401405,1734240643425,-215.04237089,0.00013998,2]
[345401406,1734240643434,-500.0,0.00013998,2]
[345401407,1734240643443,-500.0,0.00013998,2]
[345401408,1734240643453,-309.71,0.00013998,2]
[345401409,1734240643462,-500.0,0.00013998,2]
[345401410,1734240643471,-535.74726505,0.00013998,2]
[345401411,1734240643480,-316.0867343,0.00013998,2]
[345401412,1734240643489,-175.55950841,0.00013998,2]
[345401413,1734240643499,-500.0,0.00013998,2]
[345401414,1734240643510,-500.0,0.00013998,2]
[345401415,1734240643520,-554.08410193,0.00013998,2]
[345401416,1734240643529,-500.0,0.00013998,2]
[345401417,1734240643538,-500.0,0.00013998,2]
[345401418,1734240643547,-363.66,0.00013998,2]
[345401419,1734240643557,-395.84653025,0.00013998,2]
[345401420,1734240643566,-500.0,0.00013998,2]
[345401421,1734240643574,-487.76337763,0.00013998,2]
[345401422,1734240643584,-500.0,0.00013998,2]
[345401423,1734240643593,-500.0,0.00013998,2]
[345401424,1734240643602,-500.0,0.00013998,2]
[345401425,1734240643611,-500.0,0.00013998,2]
[345401426,1734240643620,-188.88671953,0.00013998,2]
[345401427,1734240643629,-500.0,0.00013998,2]
[345401428,1734240643639,-274.62370559,0.00013998,2]
[345401429,1734240643648,-500.0,0.00013998,2]
[345401430,1734240643657,-500.0,0.00013998,2]
[345401431,1734240643665,-500.0,0.00013998,2]
[345401432,1734240643675,-500.0,0.00013998,2]
[345401433,1734240643684,-506.37,0.00013998,2]
[345401434,1734240643693,-506.37,0.00013998,2]
[345401435,1734240643702,-500.0,0.00013998,2]
[345401436,1734240643711,-500.0,0.00013998,2]
[345401437,1734240643720,-1194.45,0.00013998,2]
[345401438,1734240643730,-1194.45,0.00013998,2]
[345401439,1734240643739,-500.0,0.00013998,2]
[345401440,1734240643748,-500.0,0.00013998,2]
[345401441,1734240643758,-500.0,0.00013998,2]
[345401442,1734240643767,-500.0,0.00013998,2]
[345401443,1734240643777,-500.0,0.00013998,2]
[345401444,1734240643786,-500.0,0.00013998,2]
[345401445,1734240643795,-500.0,0.00013998,2]
[345401446,1734240643805,-500.0,0.00013998,2]
[345401447,1734240643814,-1318.78,0.00013998,2]
[345401448,1734240643824,-1318.78,0.00013998,2]
[345401449,1734240643833,-500.0,0.00013998,2]
[345401450,1734240643842,-500.0,0.00013998,2]
[345401451,1734240643852,-500.0,0.00013998,2]
[345401452,1734240643861,-500.0,0.00013998,2]
[345401453,1734240643870,-500.0,0.00013998,2]
[345401454,1734240643879,-2861.36,0.00013998,2]
[345401455,1734240643888,-2861.36,0.00013998,2]
[345401456,1734240643897,-500.0,0.00013998,2]
[345401457,1734240643907,-500.0,0.00013998,2]
[345401458,1734240643917,-5055.67,0.00013998,2]
[345401459,1734240643926,-5055.67,0.00013998,2]
[345401460,1734240643935,-500.0,0.00013998,2]
[345401461,1734240643945,-500.0,0.00013998,2]
[345401462,1734240643954,-500.0,0.00013998,2]
[345401463,1734240643964,-500.0,0.00013998,2]
[345401464,1734240643973,-500.0,0.00013998,2]
[345401465,1734240643982,-500.0,0.00013998,2]
[345401466,1734240643992,-500.0,0.00013998,2]
[345401467,1734240644001,-500.0,0.00013998,2]
[345401468,1734240644011,-500.0,0.00013998,2]
[345401469,1734240644020,-500.0,0.00013998,2]
[345401470,1734240644030,-518.81,0.00013998,2]
[345401471,1734240644039,-518.81,0.00013998,2]
[345401472,1734240644048,-1062.77,0.00013998,2]
[345401473,1734240644058,-1062.77,0.00013998,2]
[345401474,1734240644067,-500.0,0.00013998,2]
[345401475,1734240644076,-500.0,0.00013998,2]
[345401476,1734240644085,-423.17,0.00013998,2]
[345401477,1734240644094,-824.02,0.00013998,2]
[345401478,1734240644103,-824.02,0.00013998,2]
[345401479,1734240644112,-2533.56,0.00013998,2]
[345401480,1734240644121,-2533.56,0.00013998,2]
[345401481,1734240644131,-2533.56,0.00013998,2]
[345401482,1734240644139,-500.0,0.00013998,2]
[345401483,1734240644149,-500.0,0.00013998,2]
[345401484,1734240644158,-500.0,0.00013998,2]
[345401485,1734240644167,-500.0,0.00013998,2]
[345401486,1734240644177,-500.0,0.00013998,2]
[345401487,1734240644186,-500.0,0.00013998,2]
[345401488,1734240644196,-500.0,0.00013998,2]
[345401489,1734240644205,-749.26,0.00013998,2]
[345401490,1734240644215,-749.26,0.00013998,2]
[345401491,1734240644223,-749.26,0.00013998,2]
[345401492,1734240644233,-500.0,0.00013998,2]
[345401493,1734240644242,-500.0,0.00013998,2]
[345401494,1734240644251,-752.82,0.00013998,2]
[345401495,1734240644260,-752.82,0.00013998,2]
[345401496,1734240644269,-752.82,0.00013998,2]
[345401497,1734240644278,-500.0,0.00013998,2]
[345401498,1734240644287,-500.0,0.00013998,2]
[345401499,1734240644296,-500.0,0.00013998,2]
[345401500,1734240644305,-500.0,0.00013998,2]
[345401501,1734240644315,-500.0,0.00013998,2]
[345401502,1734240644323,-500.0,0.00013998,2]
[345401503,1734240644332,-500.0,0.00013998,2]
[345401504,1734240644342,-500.0,0.00013998,2]
[345401505,1734240644351,-962.59,0.00013998,2]
[345401506,1734240644360,-962.59,0.00013998,2]
[345401507,1734240644369,-962.59,0.00013998,2]
[345401508,1734240644378,-855.14,0.00013998,2]
[345401509,1734240644387,-855.14,0.00013998,2]
[345401510,1734240644397,-548.11,0.00013998,2]
[345401511,1734240644406,-548.11,0.00013998,2]
[345401512,1734240644415,-500.0,0.00013998,2]
[345401513,1734240644424,-500.0,0.00013998,2]
[345401514,1734240644434,-500.0,0.00013998,2]
[345401515,1734240644443,-500.0,0.00013998,2]
[345401516,1734240644453,-500.0,0.00013998,2]
[345401517,1734240644463,-500.0,0.00013998,2]
[345401518,1734240644473,-500.0,0.00013998,2]
[345401519,1734240644482,-500.0,0.00013998,2]
[345401520,1734240644492,-500.0,0.00013998,2]
[345401521,1734240644501,-1097.65,0.00013998,2]
[345401522,1734240644513,-1097.65,0.00013998,2]
[345401523,1734240644523,-1097.65,0.00013998,2]
[345401524,1734240644533,-500.0,0.00013998,2]
[345401525,1734240644542,-500.0,0.00013998,2]
[345401526,1734240644552,-500.0,0.00013998,2]
[345401527,1734240644561,-515.10963629,0.00013998,2]
[345401528,1734240644571,-500.0,0.00013998,2]
[345401529,1734240644580,-500.0,0.00013998,2]
[345401530,1734240644589,-500.0,0.00013998,2]
[345401531,1734240644600,-500.0,0.00013998,2]
[345401532,1734240644609,-500.0,0.00013998,2]
[345401533,1734240644618,-1580.32,0.00013998,2]
[345401534,1734240644628,-1580.32,0.00013998,2]
[345401535,1734240644637,-1580.32,0.00013998,2]
[345401536,1734240644647,-500.0,0.00013998,2]
[345401537,1734240644656,-500.0,0.00013998,2]
[345401538,1734240644666,-748.58,0.00013998,2]
[345401539,1734240644676,-748.58,0.00013998,2]
[345401540,1734240644686,-748.58,0.00013998,2]
[345401541,1734240644696,-500.0,0.00013998,2]
[345401542,1734240644706,-500.0,0.00013998,2]
[345401543,1734240644716,-500.0,0.00013998,2]
[345401544,1734240644726,-500.0,0.00013998,2]
[345401545,1734240644736,-500.0,0.00013998,2]
[345401546,1734240644746,-500.0,0.00013998,2]
[345401547,1734240644758,-500.0,0.00013998,2]
[345401548,1734240644768,-500.0,0.00013998,2]
[345401549,1734240644777,-500.0,0.00013998,2]
[345401550,1734240644787,-500.0,0.00013998,2]
[345401551,1734240644797,-500.0,0.00013998,2]
[345401552,1734240644807,-907.26,0.00013998,2]
[345401553,1734240644818,-907.26,0.00013998,2]
[345401554,1734240644828,-907.26,0.00013998,2]
[345401555,1734240644840,-500.0,0.00013998,2]
[345401556,1734240644849,-500.0,0.00013998,2]
[345401557,1734240644858,-500.0,0.00013998,2]
[345401558,1734240644869,-500.0,0.00013998,2]
[345401559,1734240644879,-500.0,0.00013998,2]
[345401560,1734240644888,-500.0,0.00013998,2]
[345401561,1734240644899,-500.0,0.00013998,2]
[345401562,1734240644909,-500.0,0.00013998,2]
[345401563,1734240644918,-568.2988779,0.00013998,2]
[345401564,1734240644928,-500.0,0.00013998,2]
[345401565,1734240644939,-500.0,0.00013998,2]
[345401566,1734240644949,-500.0,0.00013998,2]
[345401567,1734240644959,-500.0,0.00013998,2]
[345401568,1734240644970,-573.88033529,0.00013998,2]
[345401569,1734240644980,-500.0,0.00013998,2]
[345401570,1734240644990,-500.0,0.00013998,2]
[345401571,1734240645000,-500.0,0.00013998,2]
[345401572,1734240645011,-500.0,0.00013998,2]
[345401573,1734240645021,-500.0,0.00013998,2]
[345401574,1734240645033,-500.0,0.00013998,2]
[345401575,1734240645046,-500.0,0.00013998,2]
[345401576,1734240645056,-500.0,0.00013998,2]
[345401577,1734240645065,-500.0,0.00013998,2]
[345401578,1734240645075,-500.0,0.00013998,2]
[345401579,1734240645084,-500.0,0.00013998,2]
[345401580,1734240645094,-500.0,0.00013998,2]
[345401581,1734240645104,-1599.93,0.00013998,2]
[345401582,1734240645114,-616.20887104,0.00013998,2]
[345401583,1734240645124,-1599.93,0.00013998,2]
[345401584,1734240645134,-1599.93,0.00013998,2]
[345401585,1734240645143,-500.0,0.00013998,2]
[345401586,1734240645153,-500.0,0.00013998,2]
[345401587,1734240645163,-500.0,0.00013998,2]
[345401588,1734240645173,-500.0,0.00013998,2]
[345401589,1734240645184,-275.71534526,0.00013998,2]
[345401590,1734240645350,-1000.0,0.00013998,2]
[345401591,1734240645362,-1000.0,0.00013998,2]
[345401592,1734240645372,-1000.0,0.00013998,2]
[345401593,1734240645382,-1000.0,0.00013998,2]
[345401594,1734240645392,-1000.0,0.00013998,2]
[345401595,1734240645402,-1000.0,0.00013998,2]
[345401596,1734240645411,-1000.0,0.00013998,2]
[345401597,1734240645421,-1000.0,0.00013998,2]
[345401598,1734240645430,-1000.0,0.00013998,2]
[345401599,1734240645439,-1000.0,0.00013998,2]
[345401600,1734240645449,-1000.0,0.00013998,2]
[345401601,1734240645458,-1000.0,0.00013998,2]
[345401602,1734240645468,-1000.0,0.00013998,2]
[345401603,1734240645478,-1000.0,0.00013998,2]
[345401604,1734240645487,-1000.0,0.00013998,2]
[345401605,1734240645497,-1000.0,0.00013998,2]
[345401606,1734240645510,-1000.0,0.00013998,2]
[345401607,1734240645519,-1000.0,0.00013998,2]
[345401608,1734240645530,-1000.0,0.00013998,2]
[345401609,1734240645539,-1000.0,0.00013998,2]
[345401610,1734240645550,-1000.0,0.00013998,2]
[345401611,1734240645559,-758.0,0.00013998,2]
[345401612,1734240645569,-568379.18188483,0.00013998,4]
[345401617,1734240646181,-627.38961874,0.00013998,4]
[345401618,1734240646196,-295.91092378,0.00013998,4]
[345401619,1734240646208,-4408.24406498,0.00013998,4]
[345401623,1734241756099,-400.75,0.00010137,2]
[345401624,1734241756123,-1576.27,0.0001088,2]
[345401625,1734241756147,-940.38361456,0.00011949,2]
[345401626,1734241756169,-990.1,0.00012049,2]
[345401627,1734241756189,-940.38361456,0.0001217,2]
[345401628,1734241756215,-1016.73,0.0001227,2]
[345401629,1734241756237,-804.79,0.00012479,2]
[345401630,1734241756260,-250.0,0.00012513,2]
[345401631,1734241756282,-998.35,0.00012529,2]
[345401632,1734241756305,-2898.54,0.00012539,2]
[345401633,1734241756329,-250.0,0.00012539,2]
[345401634,1734241756349,-150.0,0.00012575,2]
[345401635,1734241756370,-1000.0,0.00012594,2]
[345401636,1734241832169,-151.57,0.00012612,2]
[345401637,1734241832179,-250.0,0.00012615,2]
[345401638,1734241832189,-200.0,0.00012618,2]
[345401639,1734241832199,-1014.18,0.00012626,2]
[345401640,1734241832208,-999.86,0.00012633,2]
[345401641,1734241832217,-1012.37,0.00012644,2]
[345401642,1734241832227,-893.82,0.00012663,2]
[345401643,1734241832236,-1012.66,0.00012823,2]
[345401644,1734241832246,-1228.02,0.00012832,2]
[345401645,1734241832256,-3461.52,0.0001287,2]
[345401646,1734241832337,-3876.69035505,0.0001287,2]
[345401647,1734241838351,-994.77,0.00012622,2]
[345401648,1734241838364,-16561.78964495,0.0001287,2]
[345401649,1734241838375,-165.91,0.00012953,2]
[345401650,1734241838387,-450.0,0.00013,2]
[345401651,1734241838397,-624.56062742,0.00013144,2]
[345401652,1734241838513,-951.70937258,0.00013144,2]
[345401653,1734241838524,-71.09062742,0.00013157,2]
[345401799,1734241840383,-178.90937258,0.00013157,2]
[345401801,1734241840396,-211.01062743,0.000133,2]
[345401803,1734241840408,-163.83937257,0.000133,2]
[345401805,1734241840419,-500.98,0.00013345,2]
[345401807,1734241840428,-150.0,0.0001338,2]
[345401809,1734241840439,-46.34372143,0.00013598,2]
[345401811,1734241840450,-103.77779257,0.00013598,2]
[345401813,1734241840460,-150.121514,0.00013598,3]
[345401815,1734241840469,-150.121514,0.00013698,3]
[345401817,1734241840479,-150.121514,0.00013698,2]
[345401819,1734241840489,-96.72766443,0.00013698,2]
[345402076,1734241843314,-1036.13833557,0.00013698,2]
[345402077,1734241843323,-165.28,0.00013699,2]
[345402078,1734241843333,-153.0,0.0001374,2]
[345402079,1734241843343,-153.0,0.0001374,2]
[345402080,1734241843352,-500.0,0.00013789,2]
[345402081,1734241843362,-500.0,0.00013789,2]
[345402082,1734241843371,-150.121514,0.00013798,2]
[345402083,1734241843381,-150.121514,0.00013798,3]
[345402084,1734241843391,-500.0,0.00013878,2]
[345402085,1734241843402,-1000.0,0.00013878,2]
[345402086,1734241843411,-229.00909747,0.00013879,2]
[345402087,1734241843603,-500.0,0.00013879,2]
[345402088,1734241843615,-500.0,0.00013879,2]
[345402089,1734241843625,-500.0,0.00013879,2]
[345402090,1734241843634,-689.51480113,0.00013888,2]
[345402093,1734241843653,-1310.48519887,0.00013888,2]
[345402094,1734241843663,-500.0,0.00013888,2]
[345402095,1734241843672,-200.0,0.00013888,2]
[345402096,1734241843681,-1270.7133934,0.00013897,2]
[345402097,1734241843691,-150.121514,0.00013898,3]